bitfinex-derivatives/quotes_ETHF0:USTF0_20250918
["timestamp","ask_amount","ask_price","bid_price","bid_amount"]
[1758214611672,3.91305036,4624.1,4624.0,0.5607]
[1758214611971,4.13305036,4624.1,4624.0,0.8668]
[1758214613070,3.91305036,4624.1,4624.0,0.8668]
[1758214613375,4.13305036,4624.1,4624.0,0.8668]
[1758214614174,4.13305036,4624.1,4624.0,0.4312]
[1758214615072,0.5779,4624.0,4623.5,0.1251]
[1758214615279,0.4296,4623.6,4623.5,0.543]
[1758214615479,0.6496,4623.6,4623.5,0.543]
[1758214615776,1.14886652,4623.6,4623.5,0.543]
[1758214616171,1.46186652,4623.6,4623.5,0.543]
[1758214616377,4.66966652,4623.6,4623.5,0.543]
[1758214616570,4.87570526,4623.6,4623.5,0.543]
[1758214616776,4.65570526,4623.6,4623.5,0.543]
[1758214616978,4.65570526,4623.6,4623.0,0.1251]
[1758214616979,4.87570526,4623.6,4623.0,0.1251]
[1758214617167,0.4296,4623.1,4623.0,0.8756]
[1758214617373,1.14916214,4623.1,4623.0,0.8756]
[1758214617672,0.49956214,4623.1,4623.0,0.8756]
[1758214617877,0.71956214,4623.1,4623.0,0.8756]
[1758214618176,3.2078,4623.6,4623.5,0.8812]
[1758214618378,4.13341774,4623.6,4623.5,0.8812]
[1758214618578,3.91341774,4623.6,4623.5,0.8812]
[1758214618773,4.13341774,4623.6,4623.5,0.8812]
[1758214618968,3.92738017,4623.6,4623.5,0.8812]
[1758214619375,4.14468017,4623.6,4623.5,0.8812]
[1758214620078,3.92738017,4623.6,4623.5,0.8812]
[1758214620378,0.71958017,4623.6,4623.5,0.8812]
[1758214622480,0.49958017,4623.6,4623.5,4.8812]
[1758214622885,0.5779,4624.0,4623.9,0.7505]
[1758214623084,0.7979,4624.0,4623.9,0.7505]
[1758214624887,1.0152,4624.0,4623.9,0.7505]
[1758214625481,0.7979,4624.0,4623.9,0.7505]
[1758214625680,0.5779,4624.0,4623.9,4.7505]
[1758214625875,0.7979,4624.0,4623.9,4.7505]
[1758214627181,0.5779,4624.0,4623.9,4.7505]
[1758214630088,0.5779,4624.0,4623.9,0.7505]
[1758214630482,0.7944,4624.0,4623.9,0.7505]
[1758214630784,1.23249152,4624.0,4623.9,0.5435]
[1758214631090,1.23249152,4624.0,4623.9,0.7557]
[1758214631579,0.7311,4623.9,4623.8,3.747]
[1758214631779,1.23249152,4623.9,4623.8,3.747]
[1758214631983,0.7311,4623.7,4623.6,0.3214]
[1758214632185,1.45249152,4623.7,4623.6,0.5392]
[1758214632386,1.66336243,4623.7,4623.6,0.5392]
[1758214632581,1.66336243,4623.7,4623.2,3.2078]
[1758214632893,0.4277,4623.4,4623.3,0.7514]
[1758214633187,0.63857091,4623.4,4623.3,0.7514]
[1758214633391,0.71226243,4623.4,4623.3,0.7514]
[1758214633791,0.92876243,4623.4,4623.3,0.7514]
[1758214634793,1.14876243,4623.4,4623.3,0.7514]
[1758214635693,0.92876243,4623.4,4623.3,0.7514]
[1758214635996,1.35996243,4623.4,4623.3,0.7514]
[1758214636394,1.14909152,4623.4,4623.3,0.7514]
[1758214636798,1.45249152,4623.4,4623.3,0.7514]
[1758214637001,1.14909152,4623.4,4623.3,0.7514]
[1758214637199,1.36007882,4623.4,4623.3,0.7514]
[1758214637399,1.14909152,4623.4,4623.3,0.7514]
[1758214638199,0.50139152,4623.4,4623.3,0.7514]
[1758214638395,0.72139152,4623.4,4623.3,0.7514]
[1758214638996,0.50139152,4623.4,4623.3,0.7514]
[1758214639303,0.4277,4623.6,4623.5,0.5546]
[1758214639502,1.66457296,4623.6,4623.5,0.5546]
[1758214639802,1.36117296,4623.6,4623.5,0.876]
[1758214640098,0.7311,4624.8,4624.7,0.7514]
[1758214640297,1.16210493,4624.8,4624.7,0.7514]
[1758214640897,0.85870493,4624.8,4624.7,0.7514]
[1758214641302,1.16210493,4624.8,4624.7,0.7514]
[1758214641600,1.16210493,4624.8,4624.7,0.5392]
[1758214644005,0.4277,4624.8,4624.7,0.7514]
[1758214644196,0.6477,4624.8,4624.7,0.7514]
[1758214644600,0.7311,4624.5,4624.4,3.2078]
[1758214644802,0.7311,4624.5,4624.4,3.747]
[1758214645105,0.7311,4624.5,4624.4,3.9592]
[1758214646097,0.3034,4625.0,4624.4,3.6378]
[1758214646299,0.6477,4624.9,4624.8,0.7514]
[1758214646803,0.9511,4624.9,4624.8,0.7514]
[1758214648204,0.7311,4624.9,4624.8,0.7514]
[1758214648406,0.9511,4624.9,4624.8,0.7514]
[1758214648903,0.9511,4624.9,4624.8,0.5392]
[1758214649109,0.9511,4624.9,4624.8,0.3214]
[1758214649304,0.6477,4624.9,4624.6,0.3214]
[1758214649608,0.7311,4624.7,4624.6,0.3214]
[1758214650811,0.7311,4624.7,4624.6,0.5392]
[1758214651210,0.22,4624.7,4624.6,0.43]
[1758214651506,2.42910991,4625.7,4625.1,0.3214]
[1758214651707,0.4277,4625.2,4625.1,3.9592]
[1758214651904,0.7311,4625.2,4625.1,3.747]
[1758214652907,0.4277,4625.2,4625.1,3.9592]
[1758214654104,0.6477,4625.2,4625.1,3.9592]
[1758214654305,0.9511,4625.2,4625.1,3.9592]
[1758214655102,0.4277,4625.2,4625.1,3.9592]
[1758214655308,0.6477,4625.2,4625.1,3.9592]
[1758214655508,0.9571,4625.2,4625.1,3.9592]
[1758214656509,0.22,4625.2,4625.1,3.9592]
[1758214657009,3.2078,4625.9,4625.5,0.5672]
[1758214657210,0.71977505,4625.8,4625.6,0.38889]
[1758214657510,0.2219,4625.8,4625.7,0.4371]
[1758214657708,0.6518,4625.8,4625.7,0.7519]
[1758214658315,0.4419,4625.8,4625.7,0.7519]
[1758214658709,0.22,4625.8,4625.7,0.7519]
[1758214660816,0.22,4625.8,4625.7,0.7519]
[1758214661415,3.2078,4626.7,4625.8,0.3148]
[1758214661621,1.14120555,4626.6,4626.5,0.2228]
[1758214661921,1.67060555,4626.6,4626.5,0.5376]
[1758214663016,1.67060555,4626.6,4626.5,0.3148]
[1758214663217,1.36120555,4626.6,4626.0,0.1301]
[1758214663422,1.45060555,4626.5,4626.4,0.5376]
[1758214665123,1.67060555,4626.5,4626.4,0.5376]
[1758214666727,0.7412,4625.7,4625.6,0.5376]
[1758214666929,1.17177201,4625.7,4625.6,0.7519]
[1758214667220,1.36141245,4625.7,4625.6,0.7519]
[1758214667425,1.6728191,4625.7,4625.6,0.7519]
[1758214667627,1.6728191,4625.7,4625.1,3.2078]
[1758214667827,0.7412,4625.3,4625.1,3.2078]
[1758214668031,1.6728191,4625.3,4624.9,0.3148]
[1758214668236,1.6728191,4625.3,4624.6,3.2078]
[1758214668440,1.4528191,4625.2,4625.1,0.5376]
[1758214668738,1.4528191,4625.2,4625.1,0.7519]
[1758214671038,0.2219,4624.7,4624.6,3.2078]
[1758214671229,1.17377866,4624.7,4624.6,3.7454]
[1758214671431,1.67533745,4624.7,4624.6,3.9597]
[1758214671733,0.3094,4624.6,4624.3,0.3148]
[1758214671932,0.93603745,4624.5,4624.4,0.3148]
[1758214672136,1.45533745,4624.5,4624.4,0.7519]
[1758214672439,1.67533745,4624.5,4624.2,0.0216]
[1758214672637,0.7412,4624.3,4624.2,0.5592]
[1758214672833,1.45533745,4624.3,4624.2,0.5592]
[1758214673136,1.24275879,4624.3,4624.2,0.7735]
[1758214674734,1.24275879,4624.3,4624.2,0.7519]
[1758214675136,0.93335879,4624.3,4624.2,0.7519]
[1758214675739,1.25205879,4624.3,4624.2,0.7519]
[1758214675928,0.3187,4624.2,4623.9,0.3274]
[1758214676134,0.4232,4624.0,4623.9,0.7452]
[1758214676335,0.92475879,4624.0,4623.9,0.7452]
[1758214678133,1.24345879,4624.0,4623.8,3.2078]
[1758214678338,0.92475879,4623.9,4623.8,3.953]
[1758214679543,1.24345879,4623.9,4623.8,0.7452]
[1758214680235,0.92475879,4623.9,4623.8,0.7452]
[1758214680536,1.24345879,4623.9,4623.6,0.3274]
[1758214680736,0.7419,4623.7,4623.6,0.3274]
[1758214680938,1.24345879,4623.7,4623.6,0.5328]
[1758214681445,0.92475879,4623.7,4623.6,0.7452]
[1758214681644,0.72155879,4623.7,4623.6,0.7452]
[1758214681839,0.22,4623.7,4623.6,0.7452]
[1758214683842,0.4372,4623.7,4623.6,0.7452]
[1758214685346,0.2172,4623.7,4623.6,0.7452]
[1758214685948,0.4372,4623.7,4623.6,0.7452]
[1758214687345,0.641,4623.7,4623.6,0.7452]
[1758214687736,0.9577,4623.7,4623.6,0.7452]
[1758214688543,0.641,4623.7,4623.6,0.7452]
[1758214689344,0.9577,4623.7,4623.6,0.7452]
[1758214689751,0.9577,4623.7,4623.6,0.3274]
[1758214689942,0.7177,4623.6,4623.5,0.3168]
[1758214690343,0.7177,4623.6,4623.5,0.2952]
[1758214690543,0.7177,4623.6,4623.5,0.5102]
[1758214691446,0.621,4623.6,4623.5,0.8487]
[1758214693549,1.12678101,4623.6,4623.5,0.8487]
[1758214694152,3.2078,4624.0,4623.6,0.2952]
[1758214694348,0.92296979,4623.9,4623.8,0.7206]
[1758214694544,0.3167,4623.8,4623.3,0.0216]
[1758214694748,0.7177,4623.8,4623.7,0.4254]
[1758214694950,1.22367903,4623.8,4623.7,0.4254]
[1758214695552,0.1294,4623.5,4623.3,0.0216]
[1758214695849,0.7339,4623.4,4623.3,0.447]
[1758214696246,1.24048212,4623.4,4623.3,0.4254]
[1758214696447,1.04328212,4623.4,4623.3,0.7206]
[1758214697252,1.24048212,4623.4,4623.3,0.7206]
[1758214698454,1.44428212,4623.4,4623.3,0.7206]
[1758214698954,0.9377,4623.4,4623.3,0.7206]
[1758214700343,0.7339,4623.4,4623.3,0.7206]
[1758214701458,1.24135049,4623.4,4623.3,0.7206]
[1758214701656,1.44515049,4623.4,4623.3,0.4254]
[1758214701854,1.44515049,4623.4,4623.3,0.215]
[1758214702947,1.66093902,4623.4,4623.2,0.00324125]
[1758214703153,1.44093902,4623.3,4623.2,0.21824125]
[1758214704358,1.44093902,4623.3,4623.2,0.42864125]
[1758214706760,1.03993902,4623.3,4623.2,1.11293125]
[1758214706960,0.94323902,4623.3,4623.2,1.11293125]
[1758214707255,1.25993902,4623.3,4623.2,1.11293125]
[1758214707654,1.45713902,4623.3,4623.2,0.72384125]
[1758214708756,1.66093902,4623.3,4623.2,0.72384125]
[1758214708952,1.66093902,4623.3,4623.2,0.42864125]
[1758214709956,1.66093902,4623.3,4623.2,0.00324125]
[1758214712764,1.44093902,4623.3,4623.2,0.21824125]
[1758214713061,1.66093902,4623.3,4623.2,0.42864125]
[1758214713657,1.44093902,4623.3,4623.2,0.42864125]
[1758214713864,1.66093902,4623.3,4623.2,0.42864125]
[1758214715761,1.66093902,4623.3,4623.2,0.21824125]
[1758214719468,1.66093902,4623.3,4623.2,0.00324125]
[1758214723964,1.66096863,4623.3,4623.2,0.00324125]
[1758214724768,1.44096863,4623.3,4623.2,0.00324125]
[1758214725167,1.66096863,4623.3,4623.2,0.00324125]
[1758214725664,1.44096863,4623.3,4623.2,0.20234125]
[1758214725969,1.66096863,4623.3,4623.2,0.20234125]
[1758214726158,1.66096863,4623.3,4623.2,0.00324125]
[1758214727069,1.23716863,4623.3,4623.2,0.71254125]
[1758214727265,1.45716863,4623.3,4623.2,0.71254125]
[1758214727658,1.66336863,4623.3,4623.2,0.71254125]
[1758214727869,1.66330621,4623.3,4623.2,0.40624125]
[1758214728169,0.00324125,4624.1,4623.7,0.38905]
[1758214728371,0.72534125,4624.1,4624.0,3.2078]
[1758214728574,0.9410025,4624.1,4624.0,3.2078]
[1758214728772,0.9410025,4624.1,4624.0,3.6108]
[1758214729471,0.52234125,4624.1,4624.0,3.9171]
[1758214729970,0.73914125,4624.1,4624.0,3.9171]
[1758214730365,0.51914125,4624.1,4624.0,3.9171]
[1758214730669,0.00324125,4624.1,4624.0,3.9171]
[1758214730870,0.51914125,4624.1,4624.0,3.9171]
[1758214731259,0.30234125,4624.1,4624.0,3.9171]
[1758214731462,0.51914125,4624.1,4624.0,3.9171]
[1758214736570,0.72164125,4624.1,4624.0,3.4069]
[1758214736775,0.72164125,4624.1,4624.0,3.4018]
[1758214737077,0.72164125,4624.1,4624.0,3.9075]
[1758214737276,0.51914125,4624.1,4624.0,3.9075]
[1758214737872,0.72164125,4624.1,4624.0,3.9075]
[1758214738074,0.72164125,4624.1,4624.0,3.5955]
[1758214738378,0.72164125,4624.1,4624.0,3.4018]
[1758214739573,0.72164125,4624.1,4624.0,3.2078]
[1758214740776,0.7149,4623.9,4623.8,0.2156]
[1758214741972,0.7149,4623.9,4623.8,0.194]
[1758214745679,0.7149,4623.9,4623.5,0.38906]
[1758214745880,0.4074,4623.7,4623.6,0.60526]
[1758214746080,0.7145,4623.7,4623.6,0.60526]
[1758214746380,0.7145,4623.7,4623.6,0.81046]
[1758214746686,0.7145,4623.7,4623.6,0.2162]
[1758214747378,0.7145,4623.7,4623.6,0.60526]
[1758214747583,0.7145,4623.7,4623.6,1.12236]
[1758214748082,0.7145,4623.7,4623.6,1.10076]
[1758214749781,0.7145,4623.7,4623.6,0.3998]
[1758214750485,1.22244079,4623.7,4623.6,0.3998]
[1758214750686,1.22244079,4623.7,4623.6,0.78886]
[1758214751184,1.22244079,4623.7,4623.6,0.3998]
[1758214751580,1.22244079,4623.7,4623.6,0.78886]
[1758214751882,0.7145,4623.7,4623.6,0.78886]
[1758214752287,0.7145,4623.7,4623.6,0.3998]
[1758214754288,1.22228048,4623.7,4623.6,0.3998]
[1758214756289,1.43779009,4623.7,4623.6,0.3998]
[1758214757587,1.43779009,4623.7,4623.6,0.1946]
[1758214760092,1.43779009,4623.7,4623.6,0.58366]
[1758214760490,1.43779009,4623.7,4623.6,0.1946]
[1758214763989,0.5207,4623.6,4623.5,0.38906]
[1758214764188,1.43779009,4623.6,4623.5,0.58366]
[1758214766290,0.72329009,4623.6,4623.5,1.10076]
[1758214766491,0.3071,4623.9,4623.8,1.10074]
[1758214768592,0.5207,4623.9,4623.8,1.10074]
[1758214770796,0.5207,4623.9,4623.8,0.7117]
[1758214771699,0.5207,4623.9,4623.8,1.10074]
[1758214771898,0.5207,4623.9,4623.8,0.7117]
[1758214773101,0.7145,4623.9,4623.8,0.3998]
[1758214774603,0.7145,4623.9,4623.8,0.78884]
[1758214774898,0.7145,4623.9,4623.8,0.3998]
[1758214775301,0.7145,4623.9,4623.8,0.7117]
[1758214775801,0.5207,4623.9,4623.8,0.7117]
[1758214776597,0.718,4623.9,4623.8,0.7117]
[1758214777902,0.718,4623.9,4623.8,0.3998]
[1758214778599,1.46375707,4623.9,4623.8,0.3998]
[1758214779804,1.46375707,4623.9,4623.8,0.1946]
[1758214782497,1.46375707,4623.9,4623.6,0.0216]
[1758214782702,0.6876,4623.7,4623.6,0.0216]
[1758214782902,1.43335707,4623.7,4623.6,0.0216]
[1758214783106,0.8049,4623.5,4623.4,3.4045]
[1758214783294,1.55065707,4623.5,4623.4,3.4045]
[1758214784307,1.55065707,4623.5,4623.4,3.6118]
[1758214784507,1.55065707,4623.5,4623.4,3.9015]
[1758214784805,1.04445707,4623.5,4623.4,3.9015]
[1758214785005,1.23605707,4623.5,4623.4,3.9015]
[1758214785397,1.35335707,4623.5,4623.4,3.9015]
[1758214787809,1.55065707,4623.5,4623.4,3.9015]
[1758214788207,1.35335707,4623.5,4623.4,3.9015]
[1758214788414,0.23586785,4623.5,4623.4,3.9015]
[1758214788706,0.4903,4624.0,4623.9,0.404]
[1758214788912,1.55745065,4624.0,4623.9,3.6118]
[1758214793707,1.55745065,4624.0,4623.9,3.4045]
[1758214795409,1.31656892,4624.0,4623.9,3.2078]
[1758214795608,1.55751307,4624.0,4623.9,3.2078]
[1758214800317,0.8275,4623.5,4623.4,3.4084]
[1758214800516,1.80011307,4623.5,4623.4,3.2078]
[1758214800712,1.80011307,4623.5,4623.2,0.02484125]
[1758214800918,0.4047,4623.3,4623.2,0.02484125]
[1758214801118,1.46456096,4623.3,4623.2,0.02484125]
[1758214801418,1.46456096,4623.3,4623.2,0.00324125]
[1758214802708,1.46456096,4623.3,4623.2,0.20384125]
[1758214803712,1.68456096,4623.3,4623.2,0.20384125]
[1758214804210,1.68456096,4623.3,4623.2,0.69744125]
[1758214804411,1.46433759,4623.3,4623.2,0.69744125]
[1758214804621,0.75243759,4623.3,4623.2,1.08653125]
[1758214804817,0.3072,4623.9,4623.4,0.38907]
[1758214805018,0.31044125,4624.1,4623.9,0.2892]
[1758214805318,0.00324125,4624.1,4624.0,0.6942]
[1758214805514,0.00324125,4624.1,4624.0,0.812]
[1758214806313,0.00324125,4624.1,4624.0,1.032]
[1758214809823,0.31924125,4624.1,4624.0,0.9142]
[1758214810025,0.31924125,4624.1,4624.0,0.6942]
[1758214810323,0.52244125,4624.1,4624.0,0.6942]
[1758214810712,0.72504125,4624.1,4624.0,0.405]
[1758214814224,0.7218,4623.9,4623.8,3.2078]
[1758214815318,0.9418,4623.9,4623.8,3.2078]
[1758214816618,0.316,4623.9,4623.8,3.4029]
[1758214816821,0.73932495,4623.9,4623.8,3.99114]
[1758214817021,0.00324125,4624.1,4624.0,1.19732]
[1758214819022,0.316,4624.9,4624.8,0.2992]
[1758214819225,0.54768615,4624.9,4624.8,3.9013]
[1758214819424,0.95348615,4624.9,4624.8,3.6021]
[1758214820827,0.95348615,4624.9,4624.8,3.9013]
[1758214820828,0.54768615,4624.9,4624.8,3.9013]
[1758214821024,0.316,4625.1,4624.9,0.2992]
[1758214821225,0.316,4625.1,4625.0,0.6935]
[1758214821525,0.7218,4624.9,4624.8,3.4029]
[1758214821830,0.95338557,4624.9,4624.8,3.4029]
[1758214822027,1.4605101,4624.9,4624.8,3.2078]
[1758214824929,1.4605101,4624.9,4624.8,3.4029]
[1758214827831,1.4605101,4624.9,4624.8,3.6021]
[1758214829929,5.4605101,4624.9,4624.3,3.2078]
[1758214830128,0.7218,4624.4,4624.3,0.1951]
[1758214830327,0.1233,4624.0,4623.9,0.1951]
[1758214830532,0.1233,4624.0,4623.6,0.3208]
[1758214830533,0.7218,4623.7,4623.6,0.0216]
[1758214830834,0.4058,4623.3,4622.6,3.2078]
[1758214831036,1.46052237,4623.3,4622.6,3.2078]
[1758214831737,1.46052237,4623.3,4622.7,0.2992]
[1758214832537,1.68052237,4623.3,4622.7,0.2992]
[1758214833234,1.68052237,4623.3,4623.2,0.19834125]
[1758214833438,0.9418,4623.3,4623.2,0.19834125]
[1758214834036,0.9418,4623.3,4623.2,0.00324125]
[1758214834444,0.9418,4623.3,4623.2,0.19834125]
[1758214834731,0.316,4623.3,4623.2,0.69674125]
[1758214835133,0.22,4623.4,4623.3,0.4943]
[1758214835336,0.22,4623.4,4623.3,0.6935]
[1758214836231,0.7135,4624.2,4624.1,0.6867]
[1758214836536,0.7312,4624.2,4624.1,0.6867]
[1758214836731,0.5193,4624.2,4624.1,0.6867]
[1758214837534,0.2993,4624.2,4624.1,0.6867]
[1758214838039,0.5112,4624.2,4624.1,0.6867]
[1758214838534,0.7135,4624.2,4624.1,0.3963]
[1758214838739,0.7135,4624.2,4624.1,0.6867]
[1758214839534,0.7135,4624.2,4624.1,0.1959]
[1758214839735,0.3214,4624.0,4623.9,0.1959]
[1758214839937,0.8326,4624.0,4623.9,0.1959]
[1758214840132,0.5112,4623.9,4623.8,3.2078]
[1758214840338,0.5112,4623.9,4623.2,3.21104125]
[1758214840339,0.2993,4623.8,4623.2,3.21104125]
[1758214840538,0.7135,4623.3,4623.2,3.40694125]
[1758214840743,0.7135,4623.3,4623.2,3.60734125]
[1758214841842,0.7135,4623.3,4623.2,3.89774125]
[1758214842042,0.331,4624.0,4623.9,0.1959]
[1758214842244,0.7123,4624.0,4623.9,0.3963]
[1758214842444,0.7533,4624.0,4623.9,0.3963]
[1758214842740,0.8326,4624.0,4623.9,0.6867]
[1758214843045,0.5112,4624.0,4623.9,0.6867]
[1758214843237,0.8326,4624.0,4623.9,0.1959]
[1758214843939,0.8326,4624.0,4623.9,0.3963]
[1758214845144,1.06481681,4624.0,4623.9,0.3963]
[1758214846241,1.06481681,4624.0,4623.9,0.1959]
[1758214846448,0.8326,4624.0,4623.9,0.3963]
[1758214846642,0.8326,4624.0,4623.9,0.6867]
[1758214847144,0.8326,4624.0,4623.9,0.3963]
[1758214847348,0.4142,4623.8,4623.7,3.2078]
[1758214847539,0.7135,4623.8,4623.7,3.2078]
[1758214848050,0.7135,4623.8,4623.7,3.4037]
[1758214849247,0.7135,4623.8,4623.7,3.6041]
[1758214849646,0.7135,4623.8,4623.7,3.8945]
[1758214850044,0.1191,4624.0,4623.7,3.8945]
[1758214850342,0.5112,4624.4,4624.3,0.6867]
[1758214850549,1.67171868,4624.4,4624.3,0.3963]
[1758214851347,1.67171868,4624.4,4624.3,0.7853]
[1758214851548,0.1191,4625.5,4624.2,3.2078]
[1758214851549,0.5193,4624.6,4624.5,0.4908]
[1758214851849,0.96347324,4624.6,4624.5,0.6867]
[1758214852547,3.2078,4625.4,4624.5,0.6867]
[1758214852755,0.2993,4625.4,4625.3,0.1959]
[1758214852953,0.96347444,4625.4,4625.3,0.3963]
[1758214853248,0.96347444,4625.4,4625.3,0.6867]
[1758214853448,1.16577444,4625.4,4625.3,0.3963]
[1758214853650,0.94577444,4625.4,4625.3,0.6902]
[1758214853947,1.16577444,4625.4,4625.3,0.6902]
[1758214855145,0.9335,4625.4,4625.3,0.6902]
[1758214855452,0.96335026,4625.4,4625.3,0.6902]
[1758214855945,0.53145026,4625.4,4625.3,0.6902]
[1758214856147,0.5055,4625.8,4625.7,0.7127]
[1758214856353,0.1191,4626.5,4625.7,0.7127]
[1758214856354,0.3945,4626.5,4626.4,0.7127]
[1758214856553,0.74695751,4626.5,4626.4,0.2089]
[1758214857052,0.74695751,4626.5,4626.4,0.5028]
[1758214857252,0.74695751,4626.5,4626.4,0.7127]
[1758214857444,0.62655751,4626.5,4626.4,0.7127]
[1758214858349,0.1972,4626.5,4626.4,0.7127]
[1758214859049,0.1972,4626.6,4626.5,0.1217]
[1758214859252,0.1972,4626.6,4626.5,0.8344]
[1758214859554,0.5055,4626.6,4626.5,0.8344]
[1758214859949,0.7028,4626.6,4626.5,0.7127]
[1758214860850,0.22,4626.7,4626.5,0.8344]
[1758214861146,35.039,4627.2,4626.6,0.7127]
[1758214861354,0.53978562,4627.1,4626.8,0.2939]
[1758214861550,0.23148562,4627.0,4626.9,0.2099]
[1758214861745,0.73698562,4627.0,4626.9,3.9205]
[1758214862054,0.7028,4627.0,4626.9,3.9205]
[1758214862743,35.259,4627.2,4627.0,0.1217]
[1758214862948,35.4562,4627.2,4627.1,0.7127]
[1758214863148,35.2362,4627.2,4627.1,0.7127]
[1758214863350,35.7645,4627.2,4627.1,0.7127]
[1758214863548,0.7028,4627.2,4627.1,0.7127]
[1758214864149,0.1204,4627.0,4626.9,3.2078]
[1758214864350,0.8232,4627.0,4626.9,3.2078]
[1758214864853,0.8232,4627.0,4626.9,3.4167]
[1758214865846,0.8232,4627.0,4626.9,0.5039]
[1758214867551,0.8232,4627.0,4626.9,0.2089]
[1758214868756,0.8232,4627.0,4626.6,0.295]
[1758214869252,0.5149,4627.0,4626.0,0.12494125]
[1758214869449,0.3977,4626.2,4626.1,0.4929]
[1758214869952,0.7129,4626.2,4626.1,0.6941]
[1758214872256,0.7129,4626.2,4626.0,0.00324125]
[1758214874057,0.3977,4626.2,4626.1,0.3991]
[1758214874268,0.3977,4626.2,4626.1,0.6941]
[1758214874269,0.421,4626.2,4626.1,0.6941]
[1758214874664,0.9329,4626.2,4626.1,0.6941]
[1758214874860,0.9329,4626.2,4626.0,3.32974125]
[1758214874861,0.3152,4626.1,4626.0,3.21104125]
[1758214875065,0.7129,4626.1,4626.0,3.40894125]
[1758214875265,0.7129,4626.1,4626.0,3.90514125]
[1758214875663,0.7129,4626.1,4626.0,0.00324125]
[1758214875857,4.7129,4626.1,4626.0,0.00324125]
[1758214876168,4.94115213,4626.1,4626.0,0.00324125]
[1758214876368,5.4435113,4626.1,4626.0,0.00324125]
[1758214879369,0.1183,4626.0,4625.0,3.2078]
[1758214879668,0.7129,4625.1,4625.0,3.9019]
[1758214879969,0.9329,4625.1,4625.0,4.0206]
[1758214883868,0.421,4625.1,4625.0,4.0206]
[1758214884059,0.5162,4626.3,4626.2,0.1979]
[1758214884265,0.93369755,4626.3,4626.2,0.6941]
[1758214884561,0.42995122,4626.3,4626.2,0.6941]
[1758214884768,0.201,4626.7,4626.6,0.3991]
[1758214885067,0.421,4626.7,4626.6,0.6941]
[1758214885868,0.22,4626.7,4626.6,3.9019]
[1758214887774,0.421,4626.7,4626.6,3.9019]
[1758214888161,0.9329,4626.7,4626.6,0.6941]
[1758214888763,0.6177,4626.7,4626.6,0.6941]
[1758214889275,0.9329,4626.7,4626.6,0.6941]
[1758214891872,0.22,4626.7,4626.6,3.9019]
[1758214892271,0.5162,4627.4,4627.3,0.6941]
[1758214892471,1.46876346,4627.4,4627.3,0.6941]
[1758214892766,1.15356346,4627.4,4627.3,0.6941]
[1758214893876,1.66546346,4627.4,4627.3,0.6941]
[1758214894268,1.44546346,4627.4,4627.3,0.6941]
[1758214894470,1.66546346,4627.4,4627.3,0.6941]
[1758214895375,1.16181747,4627.4,4627.3,0.6941]
[1758214897373,0.22891747,4627.4,4627.3,3.9019]
[1758214897865,0.92481747,4627.4,4627.3,3.9019]
[1758214898374,1.14481747,4627.4,4627.3,3.9019]
[1758214898576,0.84681747,4627.4,4627.3,3.9019]
[1758214898771,0.64201747,4627.4,4627.3,3.9019]
[1758214899979,0.94001747,4627.4,4627.3,3.9019]
[1758214901282,0.72001747,4627.4,4627.3,3.9019]
[1758214901677,0.1931,4627.0,4626.9,0.2059]
[1758214901877,0.6959,4627.0,4626.9,0.7049]
[1758214902075,1.04596178,4627.0,4626.9,0.2059]
[1758214902478,0.3979,4626.7,4626.6,0.5001]
[1758214902678,0.92456178,4626.7,4626.6,0.5001]
[1758214902875,0.92456178,4626.7,4626.6,0.7049]
[1758214903074,0.6959,4626.7,4626.6,0.7049]
[1758214903373,0.298,4627.1,4626.7,0.2942]
[1758214903574,0.73542,4627.5,4627.2,0.2942]
[1758214903773,0.3979,4627.3,4627.2,0.5001]
[1758214903978,1.43025251,4627.3,4627.2,0.2059]
[1758214904287,1.64925251,4627.3,4627.2,0.7049]
[1758214904485,1.43025251,4627.3,4627.2,0.7049]
[1758214904681,1.64925251,4627.3,4627.2,0.7049]
[1758214905076,0.219,4627.4,4627.2,0.4107]
[1758214905282,0.7101,4627.4,4627.3,3.9127]
[1758214905580,1.21390395,4627.4,4627.3,3.9127]
[1758214905882,0.7101,4627.4,4627.3,3.9127]
[1758214906082,0.9149,4627.4,4627.3,3.9127]
[1758214906278,1.12071628,4627.4,4626.8,3.502]
[1758214906478,0.6959,4626.9,4626.8,3.9127]
[1758214908776,0.1931,4626.9,4626.8,3.9127]
[1758214910187,0.6959,4626.9,4626.8,3.9127]
[1758214910778,1.4310674,4626.9,4626.5,0.2942]
[1758214910984,0.6959,4626.6,4626.5,0.5001]
[1758214911283,1.4310674,4626.6,4626.5,0.2059]
[1758214911986,1.4310674,4626.6,4626.5,0.7049]
[1758214912183,1.6500674,4626.6,4626.5,0.7049]
[1758214912589,1.6500674,4626.6,4626.5,0.2059]
[1758214913185,1.6500674,4626.6,4626.2,3.502]
[1758214913186,0.3979,4626.3,4626.2,3.7079]
[1758214913391,0.6959,4626.3,4626.2,3.9127]
[1758214913593,1.20032693,4626.3,4626.2,3.9127]
[1758214913793,1.43144311,4626.3,4626.2,3.9127]
[1758214915083,1.43144311,4626.3,4625.5,0.72659]
[1758214915084,1.43144311,4626.3,4625.7,0.3065]
[1758214915289,0.6976,4625.8,4625.7,0.7175]
[1758214915593,1.43314311,4625.8,4625.7,0.7175]
[1758214917993,1.20202693,4625.8,4625.7,0.7175]
[1758214918202,0.70052693,4625.8,4625.7,0.7175]
[1758214918684,1.00162693,4625.8,4625.7,0.7175]
[1758214920394,1.20202693,4625.8,4625.7,0.7175]
[1758214920599,1.43295151,4625.8,4625.7,0.7175]
[1758214921392,1.43295151,4625.8,4625.2,0.3065]
[1758214921695,0.6976,4624.7,4624.1,3.2078]
[1758214921889,0.6976,4624.2,4624.1,3.2078]
[1758214922088,1.43349871,4624.2,4623.4,0.3065]
[1758214922298,0.127,4624.5,4623.1,3.2078]